Cogmind - Beta 11 X9 @@@ ROGUE MODE // 2021.12.24 @ 18:09:55 // Winter2021/Sauler Player: leiavoia Result: Destroyed by D-53 Grenadier with Mini Grenade Launcher Performance ------------- Evolutions (0) 0 Regions Visited (2) 400 Robots Destroyed (8) 40 Value Destroyed (171) 171 Prototype IDs (2) 40 Alien Tech Used (0) 0 Bonus (0) 0 TOTAL SCORE: 651 Bonus ------- None Cogmind --------- Core Integrity 0/250 Matter 252/300 Energy 99/100 System Corruption 0% Temperature Cool (0) Movement Treading (160) Location -10/Mines Parts ------- > --- POWER (1) -------- (None) > --- PROPULSION (2) --- Light Treads Light Treads > --- UTILITY (2) ------ Small Storage Unit Improved Terrain Scanner > --- WEAPON (2) ------- Medium Laser > --- INVENTORY (8) ---- Ion Engine Aluminum Leg Aluminum Leg High-capacity Matter Pod (0) EM Pulse Gun Assault Rifle Light Cannon Mining Laser Peak State ------------ > --- POWER ------------ Ion Engine > --- PROPULSION ------- Aluminum Leg Aluminum Leg > --- UTILITY ---------- Small Storage Unit Improved Terrain Scanner > --- WEAPON ----------- Medium Laser Assault Rifle > --- INVENTORY -------- Ion Engine Light Treads Light Treads Wheel Wheel Light Assault Rifle [Rating: 9] Favorites ----------- Power Ion Engine Engine Ion Engine Propulsion Aluminum Leg Treads Light Treads Leg Aluminum Leg Utility Small Storage Unit Device Improved Terrain Scanner Storage Small Storage Unit Weapon Assault Rifle Energy Gun Medium Laser Ballistic Gun Assault Rifle Ballistic Cannon Light Cannon Special Weapon Mining Laser Build | -11 -10 -10 ------- Run | Scr Mat Min Slots Evolved . | . . . Power . | . . . Propulsion . | . . . Utility . | . . . Weapon . | . . . Parts Attached 9 | 1 3 5 Power 1 | . . 1 Engine 1 | . . 1 Core . | . . . Reactor . | . . . Propulsion 3 | . 1 2 Treads 2 | . . 2 Leg 1 | . 1 . Wheel . | . . . Hover . | . . . Flight . | . . . Utility 2 | 1 . 1 Device 2 | 1 . 1 Storage . | . . . Processor . | . . . Hackware . | . . . Protection . | . . . Artifact . | . . . Weapon 3 | . 2 1 Energy Gun 1 | . 1 . Energy Cannon . | . . . Ballistic Gun . | . . . Ballistic Cannon 1 | . . 1 Launcher . | . . . Special Weapon 1 | . 1 . Impact Weapon . | . . . Slashing Weapon . | . . . Piercing Weapon . | . . . Special Melee Weapon . | . . . Unidentified Prototypes . | . . . Parts Lost 2 | . . 2 Power 1 | . . 1 Propulsion . | . . . Utility . | . . . Weapon 1 | . . 1 Highest Loss Streak 2 | . . 2 Average Slot Usage (%) 99 | . 100 97 Engine 14 | . 14 14 Leg 28 | . 28 28 Device 13 | . 14 11 Storage 14 | . 14 14 Energy Gun 10 | . 9 14 Ballistic Gun 11 | . 14 2 Ballistic Cannon 2 | . . 11 Special Weapon 3 | . 4 . Naked Turns . | . . . Heaviest Build 16 | 15 15 16 Greatest Support 40 | 20 20 40 Greatest Overweight (x) . | . . . Average Overweight (x) . | . . . Largest Inventory Capacity 8 | 8 8 8 Average Capacity 8 | 8 8 8 Most Carried 8 | 7 8 8 Average Carried 7 | 6 7 7 Final Capacity 8 | 8 8 8 Final Carried 8 | 7 8 8 Class Distribution -------------------- 100% | Mutant Dominant Class ---------------- Mutant | -10/Materials Mutant | -10/Mines Resources | -11 -10 -10 ----------- Run | Scr Mat Min Matter Collected 318 | 222 42 54 Remotely . | . . . Salvage Created 274 | 95 94 85 Parts 21 | 7 9 5 Haulers Intercepted . | . . . Recyclers Shooed 1 | . . 1 Parts Field Recycled . | . . . Retrieved Matter . | . . . Parts Self-Destructed . | . . . Prevented . | . . . Kills | -11 -10 -10 ------- Run | Scr Mat Min Combat Hostiles Destroyed 6 | . 4 2 Guns 5 | . 4 1 Cannons 1 | . . 1 Classes Destroyed 4 | 2 2 . Tunneler 1 | 1 . . Recycler 1 | 1 . . Swarmer 3 | . 3 . Grunt 3 | . 1 2 Best Kill Streak 4 | 2 4 2 Combat Bots Only 4 | . 4 2 Max Kills in Single Turn 1 | 1 1 1 Gunslinging . | . . . Exploded . | . . . Melee . | . . . Uniques/NPCs Destroyed . | . . . Combat | -11 -10 -10 -------- Run | Scr Mat Min Damage Taken 805 | . 174 631 Core 250 | . 66 184 Absorbed by Shields . | . . . Core Remaining (%) 100 | 100 . . Volleys Fired 26 | 4 11 11 Largest 2 | 2 2 2 Hottest 120 | 70 120 85 Shots Fired 52 | 8 22 22 Gun 43 | 8 21 14 Cannon 8 | . . 8 Launcher . | . . . Special 1 | . 1 . Kinetic 26 | 4 11 11 Thermal 26 | 4 11 11 Explosive . | . . . Electromagnetic . | . . . Robot Hit Streak 6 | 4 6 6 Robot Miss Streak 2 | 1 2 2 Penetration Max . | . . . Secondary Targets . | . . . Shots Hit Robots 35 | 5 14 16 Core Hits 16 | 3 7 6 Critical Kills . | . . . Critical Parts Destroyed . | . . . Critical Strikes 2 | 1 . 1 Burn 2 | 1 . 1 Melee Attacks . | . . . Impact . | . . . Slashing . | . . . Piercing . | . . . Sneak Attacks . | . . . Combat Hostiles . | . . . Follow-up Attacks . | . . . Damage Inflicted 463 | 62 177 224 Guns 357 | 62 177 118 Cannons 106 | . . 106 Explosions . | . . . Melee . | . . . Ramming . | . . . Kinetic 279 | 38 114 127 Thermal 184 | 24 63 97 Explosive . | . . . Electromagnetic . | . . . Impact . | . . . Slashing . | . . . Piercing . | . . . Highest Corruption . | . . . Average Corruption . | . . . Corruption Purged . | . . . Overload Shots . | . . . Overflow Damage . | . . . Projectiles . | . . . Explosions . | . . . Melee . | . . . Knockbacks 2 | . . 2 Impact . | . . . Kinetic 2 | . . 2 Secondary . | . . . Self-Inflicted Damage . | . . . Shots . | . . . Rammed . | . . . Targets Rammed . | . . . Kicked . | . . . Crushed . | . . . Highest Temperature 126 | 38 126 96 Average Temperature 37 | 17 47 34 Received Heat Transfer 101 | . 51 50 Siege Activations . | . . . Robots Corrupted . | . . . Combat Hostiles . | . . . Parts Fried . | . . . Impact Corruptions . | . . . Robots Melted . | . . . Combat Hostiles . | . . . Parts Melted . | . . . Heat Transferred 703 | 148 185 370 Parts Sabotaged . | . . . Parts Stolen . | . . . Parts Stripped . | . . . Power Chain Reactions . | . . . Missiles Intercepted . | . . . Alert | -11 -10 -10 ------- Run | Scr Mat Min Peak Influence 193 | 10 193 50 Initial 6 | . 6 . Average 62 | 8 74 37 Maximum Alert Level . | . . . Low Security (%) 100 | 100 100 100 Level 1 . | . . . Level 2 . | . . . Level 3 . | . . . Level 4 . | . . . Level 5 . | . . . High Security . | . . . Max Security . | . . . Squads Dispatched . | . . . Investigation . | . . . Extermination . | . . . Reinforcement . | . . . Assault . | . . . Garrison . | . . . Intercept . | . . . Construction Impeded . | . . . Haulers Reinforced . | . . . Active Scanning Responses . | . . . Cargo Convoy Interrupts . | . . . Stealth | -11 -10 -10 --------- Run | Scr Mat Min Distress Signals . | . . . Communications Jammed . | . . . Distress Signals . | . . . Times Spotted 22 | . 9 13 Peak Tracking Total 7 | . 5 7 Tactical Retreats 2 | . 2 . Traps | -11 -10 -10 ------- Run | Scr Mat Min Traps Triggered . | . . . Indirectly . | . . . Trap Hack Attempts . | . . . Triggered . | . . . Disarmed . | . . . Reprogrammed . | . . . Reused . | . . . Traps Extracted . | . . . Installed . | . . . Triggered . | . . . Machines | -11 -10 -10 ---------- Run | Scr Mat Min Machines Disabled . | . . . Max in Single Turn . | . . . Machines Sabotaged . | . . . Garrisons Compromised . | . . . Overloaded Fab Kills . | . . . Hacking | -11 -10 -10 --------- Run | Scr Mat Min Machines Accessed 4 | . 4 . Terminals 3 | . 3 . Fabricators . | . . . Repair Stations . | . . . Recycling Units 1 | . 1 . Scanalyzers . | . . . Garrison Access . | . . . Total Hacks 8 | . 8 . Successful 4 | . 4 . Failed 4 | . 4 . Catastrophic . | . . . Database Lockouts . | . . . Manual . | . . . Terminals 7 | . 7 . Fabricators . | . . . Repair Stations . | . . . Recycling Units 1 | . 1 . Scanalyzers . | . . . Garrison Access . | . . . Terminal Hacks 3 | . 3 . Prototype ID Bank 1 | . 1 . Branch Access Points 1 | . 1 . Hauler Manifests 1 | . 1 . Fabricator Hacks . | . . . Repair Station Hacks . | . . . Recycling Unit Hacks 1 | . 1 . Retrieve Components 1 | . 1 . Scanalyzer . | . . . Garrison Access Hacks . | . . . Unauthorized Hacks . | . . . Terminals . | . . . Fabricators . | . . . Repair Stations . | . . . Recycling Units . | . . . Scanalyzers . | . . . Garrison Access . | . . . Data Cores Recovered . | . . . Used . | . . . Hacking Detections 3 | . 3 . Full Trace Events . | . . . Feedback Events . | . . . Feedback Blocked . | . . . Robot Schematics Acquired . | . . . Robots Built . | . . . Authchips . | . . . Time . | . . . Total Robot Build Rating . | . . . Part Schematics Acquired . | . . . Parts Built . | . . . Authchips . | . . . Time . | . . . Total Part Build Rating . | . . . Parts Repaired . | . . . Time . | . . . Parts Recycled . | . . . Recycled Matter . | . . . Retrieved Matter . | . . . Retrieved Components 3 | . 3 . Parts Scanalyzed . | . . . Part Schematics Acquired . | . . . Parts Damaged . | . . . Bothacking | -11 -10 -10 ------------ Run | Scr Mat Min Used RIF Installer . | . . . Robots Hacked . | . . . Non-combat . | . . . Combat . | . . . Robot Hacks Applied . | . . . Relay Couplers Released . | . . . Fabnet Peak Effective % . | . . . Robots Rewired . | . . . Allies Hacked . | . . . Hacks Repelled . | . . . Allies | -11 -10 -10 -------- Run | Scr Mat Min Total Allies . | . . . Largest Group . | . . . Highest-Rated Group . | . . . Highest-Rated Ally . | . . . Total Orders . | . . . Ally Attacks . | . . . Total Damage . | . . . Kills . | . . . Allies Corrupted . | . . . Allies Melted . | . . . Intel | -11 -10 -10 ------- Run | Scr Mat Min Robot Analysis Total . | . . . Derelict Logs Recovered . | . . . Drone Launches . | . . . Drone Recoveries . | . . . Exploration | -11 -10 -10 ------------- Run | Scr Mat Min Turns Passed 575 | 32 412 131 Spaces Moved 382 | 15 298 69 Core . | . . . Treads 2 | . . 2 Legs 380 | 15 298 67 Wheels . | . . . Hover . | . . . Flight . | . . . Fastest Speed 120 | 120 120 120 Average Speed 120 | 120 120 121 Slowest Speed 160 | 120 120 160 Overloaded Moves . | . . . Propulsion Burnouts . | . . . Robots Hopped . | . . . Cave-ins Triggered . | . . . Exploration Rate (%) 30 | 2 60 30 Regions Visited 2 Branch Regions 1 Pre-discovered Areas . | . . . Known Exits Taken 1 | . 1 . Unknown Exits Taken 1 | 1 . . Scrap Searched 1 | . . 1 Spaces Dug 1 | . 1 . Terrain Destroyed 1 | . 1 . Melee . | . . . Projectile 1 | . 1 . AOE . | . . . Terrain Rammed . | . . . Walls Destroyed . | . . . Machines Disabled . | . . . Actions | -11 -10 -10 --------- Run | Scr Mat Min Total 443 | 20 329 94 Wait 16 | . 10 6 Move 380 | 14 297 69 Hop . | . . . Pick Up 6 | 1 4 1 Fast Attach 1 | 1 . . Attach 2 | . . 2 Detach 1 | . . 1 Swap 6 | . 3 3 Drop 5 | . 4 1 Fire 26 | 4 11 11 Melee . | . . . Ram . | . . . Kick . | . . . Crush . | . . . Escape Stasis . | . . . Rewire . | . . . Trap . | . . . Miscellaneous . | . . . Route ------- -11/Scrapyard -10/Materials (discovered 3 exits: [*Mat x2] / *Min) -10/Mines (discovered 1 exit: [*Mat]) History --------- Turn | Location | Event 14 | -11/Scrapyard | Discovered new exit (range 3) 33 | -11/Scrapyard | Entered Materials 107 | -10/Materials | Identified exit to Mines 135 | -10/Materials | Discovered new exit (range 4) 300 | -10/Materials | Build established: Mutant 342 | -10/Materials | Discovered new exit (range 8) 445 | -10/Materials | Entered Mines 447 | -10/Mines | Discovered new exit (range 13) 544 | -10/Mines | Assembled infested the area 568 | -10/Mines | Core integrity fell below 50% 571 | -10/Mines | Core integrity fell below 20% 576 | -10/Mines | Destroyed by D-53 Grenadier with Mini Grenade Launcher Last Messages --------------- 00555_ Acquired 3 matter. 00556_ Searching scrap... 00556_ Found Med. Battery. 00556_ Found 24 Matter. 00557_ Acquired 24 matter. 00559_ Laser Drill disabled. 00564_ D-53 Grenadier suffers critical hit (Burn). 00566_ The unstable cave ceiling collapses. 00566_ as-19780 destroyed. 00566_ as-72628 destroyed. 00567_ D-53 Grenadier knocked back. 00569_ D-53 Grenadier heat damages Lgt. Deuterium Engine. 00570_ as-02543 destroyed. 00570_ as-98191 destroyed. 00572_ Lgt. Cannon destroyed. 00572_ as-54143 destroyed. 00572_ D-53 Grenadier destroyed. 00574_ Ion Engine destroyed. 00574_ U-05 Engineer destroyed. 00575_ The unstable cave ceiling collapses. Map ----- +----------------------------------------------------+ | | | | | | | | | ??????????????????????????????????????????#?? | | ????????????????????????????????????????#???? | | ????????????????????????????????????????????? | | ??????????????????????????????????????????### | | ?????????????????????????????????????????## | | ????????????????????????? ???? ?????????## | | ???????????????????????????????????????## | | ????????????????????????????????????#?## | | ?????????????????# ??"???"???????????## | | ?????????????????# ???? ????????????## | | ?????????????????# ??? ??????????### < | | ?????????????????# ??? ?????????## | | ?????????????????# ??? ""???????# | | ?????????????????# ??? ???????## | | ?????????????????# """k""" ?"????## | | ?????????????????# """ """ ""??#??## | | ????????#????#???# """%""" ""??????####### | | ?????????????????# u ???????????# | | ????????????????## """ """ ""???#??????#?# | | ???????????????## " """ """?????????#?# | | ?????????????### """ """ #?????????# | | ???????????# # @ k #?????##### | | ???????????# d ####???????### ## | | ????????#?# a a ####????????# | | ??????????# # #????????# | | ??????????## # ## #???####?## | | ???????????# ## ## #??## ##### | | ???????????#??## ## #### """" | | ???????????????# ## """" | | ???????????????# ## ##### """" | | ???????????????#### ## """ #???# | | ??????????????????# ###### """ #???## | | ??????????????????# ????## """ #????## | | ??????????????????#a?????# #?????# | | ??????????????? ?? ?????## ## #?????# | | ??????????????????##??????####### ??????# | | ?????????????????????????????#??# ?????? | | ??????????????????????#????????? ????? | | ?????????????????#???????#?????? ?????? | | ???????????????????????????????? ? ?????? | | ???????????????????????????????? ## ??????? | | ??????????????????????????????? ? #??#??????? | | ?????????????????????????????????#??????????? | | ????????????????????????????????????????????? | | ????????????????????????????????????????????? | | ????????????????????????????????????????????? | +----------------------------------------------------+ Best States ------------- Heat Dissipation 25 Energy Generation 10 Energy Capacity 250 Matter Stores 300 Matter Capacity 300 Sight Range 16 Terrain Scan Range 16 Terrain Scan Density 10 Evasion (%) 55 Item Schematics ----------------- None Robot Schematics ------------------ None Fabricated ------------ Nothing Alien Tech Used ----------------- None Achievements -------------- None Challenges ------------ None Game ------ Seed RagnarokIntegratedCore Manual? 0 Play Time 00:08:21 Cumulative 517.1 hours Start 2021.12.24 @ 18:03:01 End 2021.12.24 @ 18:09:55 Sessions 1 Manual Loads 0 Difficulty Rogue Special Mode Winter2021/Sauler Game No. 115 Rogue 84 Adventurer 31 Explorer 0 Win Type - Total 27 Types 22/0/2/3/0/0/0/0/0 Lore% 72 Gallery% 81 Achievement% 64 Wizard Run 0 Options --------- ASCII 0 Keyboard 0 Movement Arrows Keybinds 0 Fullscreen 1 Font 20/Terminus Map View 66x50 Tactical HUD 1 Map Filters NONE Filters NONE Steam 1 RUN: 7bbdf1d5-c545-4a86-861d-af54d8ba6bdd